bitfinex-derivatives/quotes_SOLF0:USTF0_20260304
["timestamp","ask_amount","ask_price","bid_price","bid_amount"]
[1772617018099,4.12747843,90.97,90.889,47.44139853]
[1772617018302,9.895,90.95,90.889,47.44139853]
[1772617018895,9.896,90.94,90.889,47.44139853]
[1772617019298,4.14859973,90.96,90.889,47.44139853]
[1772617019700,9.897,90.929,90.889,47.44139853]
[1772617019898,4.14859973,90.96,90.889,47.44139853]
[1772617020104,4.14859973,90.94,90.831,47.39589205]
[1772617020305,9.898,90.92,90.835,47.39589205]
[1772617021104,9.898,90.92,90.843,47.40041624]
[1772617021507,4.14859973,90.92,90.843,47.40041624]
[1772617022297,9.9,90.899,90.843,47.40041624]
[1772617023104,9.899,90.911,90.843,47.40041624]
[1772617023410,4.14859973,90.94,90.843,47.40041624]
[1772617023905,4.14859973,90.96,90.845,47.43615308]
[1772617024299,4.14859973,90.94,90.845,47.43615308]
[1772617025300,9.899,90.914,90.845,47.43615308]
[1772617025509,9.899,90.914,90.829,9.908]
[1772617025510,4.14859973,90.9,90.781,47.42335674]
[1772617025702,9.901,90.896,90.807,47.42335674]
[1772617026105,4.14859973,90.92,90.807,47.42335674]
[1772617026411,4.14859973,90.98,90.843,47.4186177]
[1772617026802,4.14859973,90.98,90.867,47.4186177]
[1772617027920,9.895,90.95,90.867,57.3226177]
[1772617028712,9.896,90.94,90.867,47.4186177]
[1772617029007,4.14859973,90.98,90.867,47.4186177]
[1772617029315,4.14859973,90.92,90.825,47.31967317]
[1772617029605,4.14859973,90.91,90.825,47.31967317]
[1772617031309,9.901,90.894,90.825,47.31967317]
[1772617031912,4.14859973,90.91,90.825,47.31967317]
[1772617033001,9.904,90.865,90.777,9.914]
[1772617033202,9.904,90.865,90.778,46.94762271]
[1772617033602,9.906,90.845,90.778,46.94762271]
[1772617034013,4.14859973,90.87,90.778,46.94762271]
[1772617034414,9.903,90.87,90.78,47.09921428]
[1772617034712,4.14859973,90.91,90.78,51.24781401]
[1772617035109,4.14859973,90.91,90.795,47.10212732]
[1772617035309,4.14859973,90.93,90.801,47.10212732]
[1772617035509,4.14859973,90.95,90.821,47.10212732]
[1772617035715,9.898,90.92,90.842,47.10212732]
[1772617036209,9.897,90.931,90.844,47.03501778]
[1772617036415,4.14859973,90.97,90.844,47.03501778]
[1772617036611,9.897,90.931,90.857,47.03501778]
[1772617037416,9.898,90.921,90.857,47.03501778]
[1772617037616,4.14859973,90.97,90.857,47.03501778]
[1772617037816,19.783,90.981,90.857,47.03501778]
[1772617038115,19.777,91.009,90.878,47.07429066]
[1772617038313,4.14859973,91.03,90.891,47.07429066]
[1772617038521,4.14859973,91.03,90.894,47.07429066]
[1772617038827,10.78327836,91.04,90.911,47.07429066]
[1772617039020,4.14859973,91.03,90.911,47.07429066]
[1772617039222,9.891,90.985,90.911,47.07429066]
[1772617039817,9.89,90.998,90.913,47.08043449]
[1772617040020,4.14859973,91.03,90.913,47.08043449]
[1772617040720,4.14859973,91.01,90.913,47.08043449]
[1772617040922,4.14859973,90.99,90.913,47.08043449]
[1772617041112,4.14859973,90.97,90.889,47.02953777]
[1772617042313,9.895,90.947,90.889,47.02953777]
[1772617042514,4.14859973,90.97,90.889,47.02953777]
[1772617042715,4.14859973,90.99,90.889,47.02953777]
[1772617042915,9.893,90.971,90.889,47.02953777]
[1772617044719,9.891,90.984,90.895,47.00439315]
[1772617045317,4.14859973,91.01,90.88,13.52342504]
[1772617045318,4.14859973,91.01,90.897,47.00660168]
[1772617045529,13.39975802,91.073,90.897,47.00660168]
[1772617045530,1.788e-05,91.167,91.064,153.731]
[1772617045720,33.49939507,91.303,91.009,461.475]
[1772617045721,13.56601605,91.277,91.2,4.14859973]
[1772617045924,13.56149523,91.301,91.27,4.14859973]
[1772617046228,9.848,91.386,91.187,176.0]
[1772617046229,20.33837888,91.352,91.29,4.14859973]
[1772617046421,20.32975809,91.387,91.32,4.14859973]
[1772617046729,153.004,91.498,91.271,9.30557232]
[1772617046730,78.76071966,91.538,91.38,4.14859973]
[1772617046917,78.76071966,91.538,91.321,176.0]
[1772617046918,9.835,91.5,91.321,176.0]
[1772617047117,9.835,91.5,91.41,4.14859973]
[1772617047320,10.20361222,91.452,91.34,4.14859973]
[1772617047524,78.66076051,91.451,91.341,9.89122192]
[1772617047726,78.66076051,91.448,91.342,9.89122192]
[1772617047921,78.66076051,91.394,91.31,4.14859973]
[1772617048122,78.66076051,91.394,91.192,31.63607369]
[1772617048317,78.66076051,91.394,90.65,218.1974495]
[1772617048318,78.7638056,91.391,91.193,9.85832735]
[1772617048527,78.7638056,91.377,91.24,16.79303308]
[1772617048727,78.7638056,91.377,91.241,9.77458513]
[1772617048925,78.7638056,91.377,91.242,9.77458513]
[1772617049123,78.7638056,91.377,91.22,16.79303308]
[1772617049320,78.7638056,91.377,91.25,16.79303308]
[1772617049528,153.224,91.367,91.25,16.79303308]
[1772617049730,78.7638056,91.362,91.22,16.79303308]
[1772617050028,9.85,91.36,91.221,9.73250238]
[1772617050328,9.85,91.36,91.23,16.79303308]
[1772617050525,78.7638056,91.362,91.23,16.79303308]
[1772617050827,153.059,91.465,90.825,109.0987247]
[1772617050828,153.316,91.312,91.18,16.79303308]
[1772617051030,78.7638056,91.305,91.18,16.79303308]
[1772617051322,9.854,91.326,91.18,16.79303308]
[1772617051530,78.7638056,91.368,91.24,16.79303308]
[1772617051727,78.7638056,91.332,91.21,16.79303308]
[1772617052126,78.7638056,91.357,91.24,16.79303308]
[1772617052626,9.851,91.355,91.24,16.79303308]
[1772617052828,78.7638056,91.345,91.21,16.79303308]
[1772617053333,78.7638056,91.34,91.2,16.79303308]
[1772617053532,153.282,91.332,91.165,175.62]
[1772617053831,9.855,91.318,91.19,16.79303308]
[1772617054227,78.7638056,91.34,91.22,16.79303308]
[1772617054429,9.853,91.335,91.22,16.79303308]
[1772617054832,78.7638056,91.37,91.22,16.79303308]
[1772617055040,153.199,91.382,91.25,16.79303308]
[1772617055237,153.18,91.393,91.25,16.79303308]
[1772617055539,153.194,91.385,91.25,16.79303308]
[1772617055736,153.183,91.391,91.165,175.62]
[1772617056035,78.7638056,91.399,91.27,16.79303308]
[1772617056237,153.145,91.414,91.3,16.79303308]
[1772617056538,78.7638056,91.387,91.27,16.79303308]
[1772617056938,9.853,91.335,91.24,16.79303308]
[1772617057133,78.7638056,91.354,91.24,16.79303308]
[1772617057936,78.7638056,91.346,91.21,16.79303308]
[1772617058440,78.7638056,91.334,91.21,16.79303308]
[1772617059631,11.01,91.452,91.21,16.79303308]
[1772617059939,78.7638056,91.393,91.22,16.79303308]
[1772617060237,78.7638056,91.364,91.22,16.79303308]
[1772617061037,78.7638056,91.35,91.22,16.79303308]
[1772617062047,78.7638056,91.378,91.25,16.79303308]
[1772617062845,298.0,91.429,91.25,16.79303308]
[1772617062846,78.7638056,91.375,91.25,16.79303308]
[1772617063045,78.7638056,91.375,91.22,16.79303308]
[1772617063347,78.7638056,91.337,91.19,192.17303308]
[1772617063743,78.7638056,91.367,91.22,16.79303308]
[1772617064448,78.7638056,91.364,91.22,16.79303308]
[1772617065040,78.7638056,91.362,91.22,16.79303308]
[1772617066550,78.7638056,91.36,91.22,16.79303308]
[1772617068244,153.075,91.456,91.22,16.79303308]
[1772617068245,78.6980458,91.358,91.22,16.79303308]
[1772617068446,78.6980458,91.331,91.19,192.17303308]
[1772617069243,78.6980458,91.331,91.19,175.38]
[1772617069449,78.6980458,91.317,91.19,175.38]
[1772617069854,78.6980458,91.312,91.19,175.38]
[1772617070249,78.6980458,91.294,91.19,175.38]
[1772617070448,78.6980458,91.29,91.172,9.73567652]
[1772617070850,78.6980458,91.26,91.172,9.73567652]
[1772617071356,0.34605937,91.247,91.172,9.73567652]
[1772617072948,78.6980458,91.313,91.2,16.79303308]
[1772617077153,78.6980458,91.313,91.172,9.73567652]
[1772617077551,78.6980458,91.296,91.172,9.73567652]
[1772617079257,9.859,91.277,91.172,9.73567652]
[1772617079455,16.79303308,91.32,91.172,9.73567652]
[1772617079456,78.6980458,91.276,91.172,9.73567652]
[1772617080053,78.6980458,91.364,91.172,9.73567652]
[1772617080252,78.6980458,91.357,91.192,11.25441048]
[1772617080452,78.6980458,91.329,91.193,11.25441048]
[1772617080659,78.6980458,91.288,91.194,11.25441048]
[1772617080957,78.6980458,91.288,91.172,9.73567652]
[1772617081158,11.21029197,91.33,91.192,11.25452347]
[1772617081159,78.6980458,91.286,91.192,11.25452347]
[1772617081353,78.6980458,91.286,91.193,11.25452347]
[1772617081659,78.6980458,91.286,91.194,11.25452347]
[1772617081858,78.6980458,91.286,91.195,11.25452347]
[1772617082064,78.6980458,91.286,91.196,11.25452347]
[1772617082364,78.6980458,91.286,91.197,11.25452347]
[1772617082567,78.6980458,91.286,91.172,9.73567652]
[1772617082952,78.6980458,91.253,91.172,9.73567652]
[1772617083955,72.13078327,91.247,91.172,9.73567652]
[1772617084263,72.13078327,91.247,91.173,11.24715978]
[1772617084464,72.13078327,91.247,91.172,9.73567652]
[1772617084660,71.83531649,91.245,91.172,9.73567652]
[1772617084960,71.83531649,91.245,91.173,11.2760415]
[1772617085267,71.83531649,91.245,91.174,11.2760415]
[1772617085571,71.83531649,91.245,91.175,11.2760415]
[1772617085857,71.83531649,91.245,91.172,9.73567652]
[1772617086553,71.83531649,91.245,91.173,10.54708024]
[1772617086861,71.83531649,91.245,91.172,9.73567652]
[1772617087266,71.83531649,91.245,91.173,10.58502443]
[1772617087459,71.83531649,91.245,91.172,9.73567652]
[1772617088154,71.83531649,91.245,91.173,10.53463073]
[1772617088358,71.83531649,91.245,91.174,10.53463073]
[1772617088563,71.83531649,91.245,91.175,10.53463073]
[1772617088762,71.88739168,91.241,91.176,10.53463073]
[1772617088957,71.88739168,91.241,91.177,10.53463073]
[1772617089164,71.89202832,91.237,91.178,20.19447046]
[1772617089361,71.89202832,91.237,91.179,20.19447046]
[1772617089561,71.89202832,91.237,91.18,20.19447046]
[1772617089761,71.89202832,91.237,91.181,20.19447046]
[1772617089963,67.02419006,91.209,91.132,9.42777642]
[1772617090162,67.02419006,91.209,91.151,9.42777642]
[1772617090364,67.02419006,91.209,91.152,9.58915633]
[1772617090561,67.02419006,91.209,91.153,9.58915633]
[1772617090758,57.25907956,91.192,91.125,9.42777642]
[1772617090961,57.25907956,91.192,91.116,9.42777642]
[1772617091161,57.25907956,91.192,91.111,9.42777642]
[1772617091562,9.87,91.179,91.11,9.42777642]
[1772617091763,9.87,91.179,91.094,9.42777642]
[1772617091963,9.87,91.179,91.093,9.42777642]
[1772617092163,9.87,91.179,91.094,9.42777642]
[1772617092366,9.87,91.179,91.095,9.42777642]
[1772617092868,9.87,91.179,91.093,9.42777642]
[1772617093067,57.17661676,91.218,91.108,9.42777642]
[1772617093262,57.17661676,91.21,91.098,9.42777642]
[1772617093466,57.17661676,91.21,91.086,9.42777642]
[1772617093658,9.872,91.161,91.085,9.42777642]
[1772617093860,9.872,91.161,91.083,9.42777642]
[1772617094059,9.872,91.161,91.082,9.42777642]
[1772617094261,57.29440819,91.148,91.062,9.42777642]
[1772617094458,57.29440819,91.148,91.055,9.42777642]
[1772617094662,57.29440819,91.148,91.053,9.42777642]
[1772617094973,19.734,91.211,90.99,4.13104056]
[1772617094974,57.29440819,91.119,91.01,9.42777642]
[1772617095164,57.29440819,91.119,90.996,9.42777642]
[1772617095366,57.29440819,91.119,91.001,9.42777642]
[1772617095565,9.879,91.093,90.994,9.42777642]
[1772617095766,57.29440819,91.119,90.99,4.13104056]
[1772617096265,9.88,91.083,90.99,4.13104056]
[1772617096471,57.29440819,91.119,90.981,9.42777642]
[1772617096669,57.29440819,91.119,90.98,9.42777642]
[1772617097267,57.29440819,91.119,90.974,9.42777642]
[1772617097467,9.882,91.072,90.974,9.42777642]
[1772617097667,57.10308782,91.095,90.969,9.42777642]
[1772617098170,57.10308782,91.095,90.964,9.42777642]
[1772617098472,57.10308782,91.095,90.963,9.42777642]
[1772617098671,57.10308782,91.095,90.964,9.42777642]
[1772617099367,9.883,91.062,90.96,11.25478126]
[1772617100168,57.18622081,91.091,90.96,11.25478126]
[1772617100971,9.885,91.042,90.96,11.25478126]
[1772617101170,57.18622081,91.091,90.96,11.25478126]
[1772617102067,57.05248725,91.11,90.99,11.25478126]
[1772617102271,57.05248725,91.106,90.991,10.07724694]
[1772617102468,57.05248725,91.106,90.992,10.07724694]
[1772617102772,57.05248725,91.106,90.993,10.07724694]
[1772617103069,9.879,91.097,90.994,18.4029577]
[1772617103269,153.671,91.101,90.995,18.4029577]
[1772617103464,57.05572141,91.082,90.996,10.07724694]
[1772617103667,57.05572141,91.08,90.997,10.07724694]
[1772617103863,57.05572141,91.08,90.998,10.07724694]
[1772617104068,57.05572141,91.08,90.999,10.07724694]
[1772617104263,57.05572141,91.08,91.0,10.07724694]
[1772617104468,57.05572141,91.08,91.001,10.07724694]
[1772617104673,57.05572141,91.08,91.002,10.07724694]
[1772617104875,57.05572141,91.08,91.003,10.07724694]
[1772617105068,57.05572141,91.08,91.004,10.07724694]
[1772617105265,57.05572141,91.08,91.005,10.07724694]
[1772617105470,56.83560637,91.073,90.954,9.73567652]
[1772617105670,66.71860637,91.055,90.954,9.73567652]
[1772617106272,56.83560637,91.055,90.954,9.73567652]
[1772617111969,19.759,91.092,90.954,9.73567652]
[1772617111970,56.81519529,91.049,90.954,9.73567652]
[1772617112172,56.87321634,91.02,90.954,9.73567652]
[1772617112574,9.889,91.007,90.954,5.47975362]
[1772617112771,44.02844409,91.006,90.954,5.47975362]
[1772617115073,44.02844409,91.006,90.87,11.25478126]
[1772617115278,44.02844409,91.006,90.871,8.21724981]
[1772617115478,11.25478126,91.05,90.865,175.66]
[1772617115479,40.91760012,91.004,90.865,175.66]
[1772617115686,40.91760012,91.004,90.88,11.25478126]
[1772617115878,40.91760012,91.004,90.927,9.897]
[1772617116076,40.91760012,91.004,90.888,19.803]
[1772617116980,40.91760012,91.004,90.895,154.018]
[1772617117286,40.91760012,91.004,90.889,154.028]
[1772617117592,40.91760012,91.004,90.89,9.90995984]
[1772617117785,40.91760012,91.004,90.912,9.899]
[1772617117989,41.01836559,91.079,90.913,9.90995984]
[1772617118178,41.01836559,91.079,90.914,9.90995984]
[1772617118383,41.01836559,91.048,90.915,9.90995984]
[1772617118578,41.01836559,91.048,90.95,4.13893034]
[1772617118785,41.01836559,91.048,90.951,9.90995984]
[1772617119080,41.01836559,91.048,90.95,4.13893034]
[1772617119081,41.02022963,91.046,90.952,9.90995984]
[1772617119384,41.02022963,91.046,90.953,9.90995984]
[1772617119588,41.02022963,91.046,90.954,9.90995984]
[1772617119776,41.02022963,91.043,90.955,9.90995984]
[1772617119980,41.02022963,91.043,90.93,4.13893034]
[1772617120281,41.02022963,91.043,90.931,9.92772289]
[1772617120484,40.96146318,91.037,90.932,9.92772289]
[1772617120682,40.96146318,91.037,90.933,9.92772289]
[1772617120885,40.96146318,91.037,90.934,9.92772289]
[1772617121087,40.96313824,91.014,90.935,9.92772289]
[1772617121387,40.96313824,91.014,90.936,9.92772289]
[1772617121586,40.96313824,90.997,90.891,9.901]
[1772617121784,40.96313824,90.997,90.892,9.95005921]
[1772617121988,40.96313824,90.997,90.893,9.95005921]
[1772617122188,40.96313824,90.997,90.91,4.13893034]
[1772617122384,40.83044468,91.079,90.911,9.95005921]
[1772617122688,40.83044468,91.032,90.925,9.897]
[1772617122988,40.83044468,91.032,90.926,9.95005921]
[1772617123181,40.83044468,91.032,90.927,9.95005921]
[1772617123384,40.83044468,91.032,90.928,9.95005921]
[1772617123581,40.83044468,91.032,90.93,4.13893034]
[1772617123780,40.83044468,91.032,90.95,4.13893034]
[1772617123988,40.83044468,91.032,90.951,9.95005921]
[1772617124290,40.64167219,91.077,90.97,4.13893034]
[1772617124484,40.64167219,91.077,90.971,9.95005921]
[1772617124684,4.13893034,91.09,90.931,19.794]
[1772617124685,40.64167219,91.075,90.973,9.892]
[1772617124886,40.64167219,91.069,90.974,9.95005921]
[1772617125087,40.64255409,91.049,90.94,4.13893034]
[1772617125388,40.64255409,91.049,90.903,19.8]
[1772617125389,40.64255409,91.049,90.941,9.95601542]
[1772617125588,40.64255409,91.049,90.942,9.95601542]
[1772617125790,40.64255409,91.049,90.943,9.95601542]
[1772617125990,40.64255409,91.049,90.944,9.95601542]
[1772617126289,40.67430704,91.046,90.96,9.894]
[1772617126481,40.67430704,91.046,90.961,9.95601542]
[1772617126688,40.67430704,91.046,90.962,9.95601542]
[1772617126883,40.67430704,91.046,90.963,9.95601542]
[1772617127087,40.67430704,91.046,90.964,9.95601542]
[1772617127391,40.67430704,91.046,90.965,9.95601542]
[1772617127592,40.67430704,91.046,90.97,4.13893034]
[1772617127792,40.67430704,91.046,90.971,9.95601542]
[1772617128086,40.67430704,91.046,90.972,9.95601542]
[1772617128289,40.67430704,91.046,90.973,9.95601542]
[1772617128590,50.55830704,91.046,90.974,9.95601542]
[1772617128792,50.55830704,91.046,90.975,9.95601542]
[1772617128989,50.55830704,91.046,90.976,9.95601542]
[1772617129190,50.55830704,91.046,90.977,9.95601542]
[1772617129386,50.55830704,91.046,90.978,9.95601542]
[1772617129590,40.67430704,91.046,90.979,9.95601542]
[1772617129786,40.67430704,91.046,90.98,9.95601542]
[1772617129991,40.67430704,91.046,90.981,9.95601542]
[1772617130288,40.67430704,91.046,90.982,9.95601542]
[1772617130491,40.67430704,91.046,90.983,9.95601542]
[1772617130790,40.67430704,91.046,90.94,4.13893034]
[1772617130791,40.67430704,91.046,90.994,9.89]
[1772617130985,40.67430704,91.046,90.995,9.95601542]
[1772617131191,40.67430704,91.046,90.96,4.13893034]
[1772617131192,40.67430704,91.046,91.0,9.889]
[1772617131384,40.67430704,91.046,91.001,9.95601542]
[1772617131586,40.67430704,91.046,91.002,9.95601542]
[1772617131783,26.90838471,91.263,90.916,12.42171597]
[1772617131784,4.13893034,91.11,91.003,9.95601542]
[1772617132093,4.13893034,91.11,91.004,9.95601542]
[1772617132290,4.13893034,91.11,90.957,153.913]
[1772617132291,4.13893034,91.07,91.005,9.95601542]
[1772617132490,4.13893034,91.07,91.006,9.95601542]
[1772617132691,4.13893034,91.07,90.992,9.89]
[1772617133694,38.7554388,91.069,91.001,9.889]
[1772617133888,28.8734388,91.068,91.001,9.889]
[1772617134487,28.8734388,91.068,91.01,9.888]
[1772617135497,28.8734388,91.049,90.955,25.63237105]
[1772617135693,28.8734388,91.049,90.956,8.11353738]
[1772617135893,28.8734388,91.049,90.957,8.11353738]
[1772617136194,28.8734388,91.049,90.955,25.63237105]
[1772617136195,28.8734388,91.099,90.98,4.13893034]
[1772617136495,28.8734388,91.099,91.014,30.68077383]
[1772617136793,28.8734388,91.12,91.021,30.68077383]
[1772617136990,28.8734388,91.12,91.028,30.68077383]
[1772617137186,28.8734388,91.12,91.029,38.79431121]
[1772617137385,28.8734388,91.12,91.03,8.11353738]
[1772617137594,28.8734388,91.12,91.033,9.886]
[1772617137793,28.8734388,91.12,91.034,8.11353738]
[1772617138292,28.8734388,91.12,91.035,8.11353738]
[1772617138493,28.8734388,91.12,91.036,8.11353738]
[1772617138694,28.8734388,91.12,91.042,30.68077383]
[1772617138990,28.8734388,91.12,91.044,30.68077383]
[1772617139294,28.8734388,91.12,91.045,8.11353738]
[1772617139594,28.8734388,91.12,91.046,8.11353738]
[1772617139788,28.8734388,91.12,91.047,8.11353738]
[1772617139987,28.8734388,91.12,90.98,153.875]
[1772617139988,28.8734388,91.12,91.048,8.11353738]
[1772617140290,28.8734388,91.12,91.049,8.11353738]
[1772617140490,28.8734388,91.12,91.05,8.11353738]
[1772617140690,28.8734388,91.12,91.051,8.11353738]
[1772617140888,28.8734388,91.12,91.02,4.1324524]
[1772617140889,28.8734388,91.12,91.03,9.42777642]
[1772617141093,28.8734388,91.12,91.015,9.42777642]
[1772617141293,28.8734388,91.109,91.01,40.10855025]
[1772617141497,28.8734388,91.109,91.013,19.31577642]
[1772617142197,28.8734388,91.107,91.013,9.888]
[1772617142397,28.8734388,91.107,91.022,9.887]
[1772617142599,28.8734388,91.107,91.023,30.68077383]
[1772617142800,28.8734388,91.107,91.028,30.68077383]
[1772617143093,28.8734388,91.107,91.032,30.68077383]
[1772617143293,28.8734388,91.107,91.038,9.885]
[1772617143598,28.8734388,91.131,91.042,30.68077383]
[1772617143893,28.8734388,91.131,91.051,9.42777642]
[1772617144399,28.8734388,91.131,91.04,4.1324524]
[1772617144400,28.8734388,91.131,91.058,9.42777642]
[1772617144595,28.8734388,91.169,91.06,30.68077383]
[1772617144800,28.8734388,91.166,91.069,30.68077383]
[1772617145001,28.8734388,91.166,91.053,12.86589481]
[1772617145002,28.8734388,91.166,91.07,9.63412291]
[1772617145299,28.8734388,91.127,91.071,9.63412291]
[1772617145502,28.8734388,91.127,91.072,9.63412291]
[1772617145794,28.8734388,91.127,91.073,9.63412291]
[1772617145996,28.8734388,91.127,91.074,9.63412291]
[1772617146197,28.8734388,91.114,91.039,9.42777642]
[1772617146400,28.8734388,91.114,91.035,30.68077383]
[1772617146593,28.8734388,91.114,91.039,40.10855025]
[1772617147000,28.8734388,91.114,91.047,9.884]
[1772617147400,28.8734388,91.114,91.01,23.40631618]
[1772617147401,28.8734388,91.149,91.046,30.68077383]
[1772617147701,9.876,91.126,91.059,9.883]
[1772617148698,28.8734388,91.149,91.059,9.883]
[1772617148903,28.8734388,91.149,91.048,9.884]
[1772617149198,28.8734388,91.146,91.043,9.42777642]
[1772617149497,28.8734388,91.129,91.027,9.42777642]
[1772617150003,28.8734388,91.129,91.037,9.885]
[1772617150195,28.8734388,91.129,91.032,30.68077383]
[1772617150394,28.8734388,91.129,91.043,30.68077383]
[1772617150593,28.8734388,91.129,91.056,9.883]
[1772617150793,28.8734388,91.129,91.043,9.42777642]
[1772617150997,28.8734388,91.129,91.02,30.68077383]
[1772617150998,28.8734388,91.129,91.036,9.42777642]
[1772617151194,28.8734388,91.129,91.022,12.86589481]
[1772617151195,28.8734388,91.129,91.03,9.42777642]
[1772617151397,28.8734388,91.129,91.026,30.68077383]
[1772617151699,28.8734388,91.129,91.027,30.68077383]
[1772617152106,28.8734388,91.129,91.022,9.42777642]
[1772617152304,28.8734388,91.129,91.012,9.42777642]
[1772617152501,28.8734388,91.109,91.006,30.68077383]
[1772617152696,28.8734388,91.099,91.006,40.56977383]
[1772617152900,28.8734388,91.099,91.007,8.34228332]
[1772617153096,28.8734388,91.087,91.008,8.34228332]
[1772617153298,28.8734388,91.087,90.988,30.68077383]
[1772617153299,28.8734388,91.087,91.009,8.34228332]
[1772617153502,28.8734388,91.087,91.01,8.34228332]
[1772617153704,28.8734388,91.087,91.011,8.34228332]
[1772617153902,28.8734388,91.087,91.012,8.34228332]
[1772617154103,28.8734388,91.087,91.013,8.34228332]
[1772617154295,28.8734388,91.087,91.001,9.889]
[1772617154505,28.8734388,91.087,91.002,8.33992091]
[1772617154798,28.8734388,91.087,91.001,9.889]
[1772617154799,28.8734388,91.087,91.003,8.33992091]
[1772617155005,28.8734388,91.087,91.005,9.889]
[1772617155206,28.8734388,91.087,91.006,8.33992091]
[1772617155405,28.8734388,91.087,91.007,8.33992091]
[1772617155607,28.8734388,91.083,90.996,9.89]
[1772617155905,28.8734388,91.083,90.997,8.34429607]
[1772617156103,28.8734388,91.079,90.998,8.34429607]
[1772617156308,28.8734388,91.069,90.964,30.68077383]
[1772617156508,28.8734388,91.069,90.965,8.34981122]
[1772617156708,28.8734388,91.045,90.967,9.893]
[1772617157006,28.8734388,91.045,90.968,8.34981122]
[1772617157202,28.8734388,91.045,90.97,30.68077383]
[1772617157403,28.8734388,91.045,90.971,8.34981122]
[1772617158201,28.8734388,91.045,90.972,9.36633871]
[1772617158402,33.34228699,91.043,90.973,9.36633871]
[1772617158607,33.34228699,91.043,90.975,30.55261721]
[1772617158907,33.34228699,91.043,90.985,9.891]
[1772617159200,33.34228699,91.068,90.986,17.71254946]
[1772617159394,33.34228699,91.068,90.947,12.86589481]
[1772617159395,33.34228699,91.049,90.94,9.42777642]
[1772617159595,33.34228699,91.049,90.941,38.90840156]
[1772617159799,33.34228699,91.049,90.942,38.90840156]
[1772617160000,33.34228699,91.026,90.952,9.895]
[1772617160196,33.34228699,91.026,90.953,8.35578435]
[1772617160404,33.34228699,91.026,90.942,30.55261721]
[1772617160602,33.34228699,91.026,90.943,8.36228864]
[1772617160905,33.34228699,91.016,90.944,8.36228864]
[1772617161101,33.34228699,91.016,90.945,8.36228864]
[1772617161301,33.34228699,91.013,90.946,8.36228864]
[1772617161505,33.34228699,91.013,90.947,8.36228864]
[1772617161698,33.34228699,91.013,90.942,30.55261721]
[1772617161699,34.02654718,91.011,90.942,40.44861721]
[1772617161906,34.02654718,91.011,90.943,8.35827246]
[1772617162102,34.02654718,91.011,90.923,33.51955508]
[1772617162301,4.1324524,91.05,90.931,33.51955508]
[1772617162505,4.1324524,91.05,90.93,4.1324524]
[1772617162506,34.02654718,91.032,90.94,33.51955508]
[1772617162707,34.02654718,91.032,90.942,33.51955508]
[1772617162907,34.02654718,91.002,90.943,8.36215056]
[1772617163109,34.02654718,91.002,90.944,8.36215056]
[1772617163408,34.02654718,91.002,90.945,8.36215056]
[1772617163608,34.02654718,91.002,90.946,8.36215056]
[1772617163807,34.02654718,91.002,90.947,8.36215056]
[1772617164102,34.02654718,91.002,90.948,8.36215056]
[1772617164303,34.02654718,91.002,90.949,8.36215056]
[1772617164606,34.02654718,91.023,90.933,33.51955508]
[1772617164805,34.02654718,91.023,90.935,33.51955508]
[1772617165007,34.02654718,91.023,90.936,41.88226436]
[1772617165197,34.02654718,91.023,90.937,8.36270928]
[1772617165398,34.02654718,91.023,90.938,8.36270928]
[1772617165604,34.02654718,91.023,90.939,8.36270928]
[1772617165803,34.02654718,91.023,90.936,33.51955508]
[1772617165804,34.02654718,91.023,90.94,8.36270928]
[1772617166004,34.02654718,91.023,90.941,8.36270928]
[1772617166202,9.888,91.012,90.945,9.895]
[1772617166397,9.888,91.012,90.946,8.36270928]
[1772617166602,9.888,91.012,90.947,8.36270928]
[1772617166910,34.02654718,91.007,90.948,8.36270928]
[1772617167202,34.02654718,91.007,90.949,8.3634166]
[1772617167408,34.02654718,90.991,90.928,9.42777642]
[1772617167608,34.02654718,90.991,90.929,8.36433144]
[1772617167807,34.02654718,90.991,90.93,8.36433144]
[1772617168004,9.891,90.987,90.931,8.36433144]
[1772617168204,9.891,90.987,90.932,8.36433144]
[1772617168404,43.91754718,90.987,90.933,8.36433144]
[1772617168710,34.02654718,90.986,90.921,33.51955508]
[1772617169004,34.02654718,90.967,90.922,8.37328635]
[1772617169310,34.02654718,91.009,90.905,33.51955508]
[1772617169509,34.02654718,91.009,90.907,33.51955508]
[1772617169705,34.02654718,91.009,90.908,41.89053801]
[1772617169906,34.02654718,91.009,90.909,8.37098293]
[1772617170112,34.02654718,91.009,90.91,8.37098293]
[1772617170302,34.02654718,90.989,90.919,9.898]
[1772617170504,34.02654718,90.989,90.908,33.51955508]
[1772617170709,34.02654718,90.989,90.909,8.3668424]
[1772617170909,34.02654718,90.987,90.914,9.899]
[1772617171111,34.02654718,90.987,90.915,8.3668424]
[1772617171311,34.02654718,90.987,90.908,33.51955508]
[1772617171512,34.02654718,90.987,90.909,17.55319425]
[1772617171712,34.02654718,90.987,90.919,9.898]